bitfinex/quotes_ETHUSD_20240717
["timestamp","ask_amount","ask_price","bid_price","bid_amount"]
[1721187093190,0.90000931,3486.7,3486.0,2.52843569]
[1721187093392,6.0194474,3487.0,3486.2,2.86844]
[1721187093608,6.91945671,3487.0,3486.2,2.86844]
[1721187093814,6.0194474,3487.0,3486.3,0.03738999]
[1721187094924,0.1516474,3487.0,3486.3,0.09475269]
[1721187095098,0.1516474,3487.0,3486.6,2.86809]
[1721187095300,0.1516474,3487.0,3486.9,2.86787]
[1721187095500,0.1516474,3487.0,3486.9,2.90504899]
[1721187096111,0.1516474,3487.0,3486.9,5.77291899]
[1721187096827,0.1516474,3487.0,3486.9,7.53026774]
[1721187097033,0.1516474,3487.0,3486.9,8.51680451]
[1721187097920,0.1516474,3487.0,3486.9,8.45945576]
[1721187099507,0.1516474,3487.0,3486.9,10.82675576]
[1721187099815,2.86624,3488.9,3488.1,2.86682]
[1721187100001,3.75948993,3488.9,3488.1,2.86682]
[1721187100205,0.89324993,3488.9,3488.2,2.90347623]
[1721187102133,2.86584,3489.4,3488.4,1.7]
[1721187102332,2.86576,3489.5,3488.5,0.03617737]
[1721187102641,2.86585,3489.4,3488.5,0.03617737]
[1721187103054,2.86585,3489.4,3488.5,2.90267737]
[1721187103424,3.0,3489.3,3488.6,2.86647]
[1721187103619,3.873151,3489.3,3488.6,2.86647]
[1721187103953,3.873151,3489.3,3488.7,0.03611998]
[1721187104154,6.739051,3489.3,3488.7,0.03611998]
[1721187104934,6.739051,3489.3,3488.6,2.86647]
[1721187105129,6.739051,3489.3,3488.7,0.03611998]
[1721187105343,6.739051,3489.3,3488.6,2.86647]
[1721187105344,0.6739051,3489.2,3488.6,2.86647]
[1721187105530,6.739051,3489.3,3488.7,0.03611998]
[1721187107324,6.739051,3489.3,3488.5,2.86654]
[1721187107564,2.86599,3489.2,3488.6,0.03614868]
[1721187108775,3.0,3489.3,3488.6,0.03614868]
[1721187109127,5.8659,3489.3,3488.6,0.03614868]
[1721187109333,2.86559,3489.7,3488.8,1.7]
[1721187109538,2.86559,3489.7,3489.0,2.86613]
[1721187109747,2.86559,3489.7,3489.1,0.03596301]
[1721187111263,2.86553,3489.8,3489.1,0.03596301]
[1721187111559,3.0,3489.7,3489.1,0.03596301]
[1721187111761,2.86583,3489.4,3489.1,0.03596301]
[1721187112266,2.86583,3489.4,3488.6,2.86643]
[1721187112435,2.86583,3489.4,3489.2,0.03580043]
[1721187112769,3.0,3489.7,3489.3,0.03577175]
[1721187112972,2.86549,3489.8,3489.3,0.03577175]
[1721187113272,3.0,3489.7,3489.0,2.86613]
[1721187113469,3.0,3489.7,3489.4,0.03573584]
[1721187113629,3.0,3489.7,3489.0,2.86613]
[1721187114168,2.4207,3490.1,3489.1,2.95919762]
[1721187114366,2.86514,3490.3,3489.4,2.86581]
[1721187114663,2.86514,3490.3,3489.5,2.86573]
[1721187114837,2.86514,3490.3,3489.5,2.90141304]
[1721187115037,3.69186474,3490.3,3489.5,2.90141304]
[1721187116143,2.86516,3490.2,3489.5,2.90141304]
[1721187116540,0.82672474,3490.3,3489.6,2.8656]
[1721187116745,3.82672474,3490.3,3489.7,0.03562569]
[1721187117268,3.82672474,3490.3,3489.7,2.90118569]
[1721187117476,0.82672474,3490.3,3489.7,2.90118569]
[1721187117634,3.0,3490.4,3489.9,2.86537]
[1721187117831,0.1516474,3490.5,3489.9,2.86537]
[1721187118129,0.1516474,3490.5,3490.0,2.89979621]
[1721187118337,0.1516474,3490.5,3490.4,2.865]
[1721187118531,0.1516474,3490.5,3490.4,2.89929836]
[1721187119081,0.1516474,3490.5,3490.4,0.03429836]
[1721187119234,0.1516474,3490.5,3490.4,3.1892282]
[1721187119429,0.1516474,3490.5,3490.4,6.11151925]
[1721187119643,0.1516474,3490.5,3490.4,6.0542282]
[1721187120291,1e-08,3490.5,3490.4,6.0542282]
[1721187120567,1e-08,3490.5,3490.4,0.03429836]
[1721187120986,1e-08,3490.5,3489.8,6.9292901]
[1721187121143,2.86517,3490.2,3489.8,6.9292901]
[1721187121753,2.86517,3490.2,3489.9,0.034373]
[1721187125188,2.86525,3490.1,3489.9,0.034373]
[1721187126293,2.86525,3490.1,3489.4,2.86582]
[1721187126794,2.86525,3490.1,3489.5,0.03448769]
[1721187127553,2.86516,3490.2,3489.5,0.03448769]
[1721187128184,2.86516,3490.2,3489.5,2.90021769]
[1721187129461,0.52359,3490.3,3489.5,2.90021769]
[1721187130392,0.575949,3490.2,3489.5,2.90021769]
[1721187130786,3.441169,3490.2,3489.5,0.03448769]
[1721187131161,2.86527,3490.1,3489.3,2.86589]
[1721187131353,2.86527,3490.1,3489.4,2.90032554]
[1721187132456,2.86535,3490.0,3489.4,0.03450554]
[1721187132698,2.86551,3489.8,3489.4,0.03450554]
[1721187133017,2.86551,3489.8,3488.9,9.7954901]
[1721187133018,2.86551,3489.8,3489.5,0.03455399]
[1721187133493,2.86551,3489.8,3489.1,2.86601]
[1721187133684,2.86551,3489.8,3489.6,0.03452532]
[1721187133887,2.86551,3489.8,3489.1,2.86601]
[1721187134060,9.08264899,3489.8,3489.7,0.03449664]
[1721187134259,2.86598,3489.2,3488.4,6.9292901]
[1721187134460,2.86629,3488.9,3488.1,2.86687]
[1721187134665,5.73259,3488.9,3488.5,0.03484085]
[1721187134864,5.73259,3488.9,3488.1,2.86687]
[1721187135063,5.73259,3488.9,3488.6,0.03481215]
[1721187135304,2.86648,3488.6,3487.9,6.9292901]
[1721187136069,2.86648,3488.6,3487.9,9.7963301]
[1721187136910,2.86648,3488.6,3488.0,0.03498434]
[1721187137289,2.86639,3488.8,3488.0,0.03498434]
[1721187137471,2.86629,3488.9,3488.0,1.30483578]
[1721187137472,2.86645,3488.7,3488.0,1.30483578]
[1721187137673,2.86648,3488.6,3488.0,1.30483578]
[1721187137897,2.86648,3488.6,3488.0,0.03498434]
[1721187139912,2.86629,3488.9,3488.0,0.03498434]
[1721187140110,2.8664,3488.7,3488.0,0.03498434]
[1721187140416,2.86615,3489.0,3488.2,2.86678]
[1721187140707,2.86623,3488.9,3488.2,2.86678]
[1721187140911,5.86591,3489.3,3488.3,0.03495137]
[1721187141420,2.86623,3488.9,3488.3,0.03495137]
[1721187141567,2.86611,3489.1,3488.3,0.03495137]
[1721187141775,3.0,3489.0,3488.3,0.03495137]
[1721187141972,5.86617,3489.0,3488.3,0.03495137]
[1721187144678,2.86624,3488.9,3488.3,0.03495137]
[1721187144880,2.86642,3488.7,3488.3,0.03495137]
[1721187145077,2.86642,3488.7,3487.7,2.86716]
[1721187145381,2.86656,3488.5,3487.7,2.86716]
[1721187145575,2.86656,3488.5,3487.8,2.90216436]
[1721187148115,3.0,3489.0,3488.1,2.86686]
[1721187148321,3.0,3489.0,3488.1,1.7]
[1721187148653,3.41561,3489.7,3488.1,1.7]
[1721187148654,2.8658,3489.5,3488.7,2.86632]
[1721187148859,2.86551,3489.8,3488.9,1.7]
[1721187149061,2.86551,3489.8,3489.1,2.4149]
[1721187149558,2.86551,3489.8,3489.2,0.03467195]
[1721187149720,2.86533,3490.0,3489.2,0.03467195]
[1721187149922,2.86533,3490.0,3489.2,0.09198519]
[1721187150348,2.865,3490.4,3489.3,2.86589]
[1721187150505,2.865,3490.4,3489.5,2.86565]
[1721187150706,2.865,3490.4,3489.6,2.86565]
[1721187151046,2.865,3490.4,3489.6,2.90020723]
[1721187151633,1e-08,3490.5,3489.7,2.86556]
[1721187151952,3.00000001,3490.5,3489.7,3.20872634]
[1721187152168,1e-08,3490.5,3489.8,0.03449988]
[1721187152512,3.00000001,3490.5,3489.8,0.03449988]
[1721187153247,5.86495001,3490.5,3489.8,0.03449988]
[1721187153926,2.865,3490.4,3489.8,0.03449988]
[1721187154450,2.86551,3489.8,3488.9,2.86621]
[1721187154746,2.86551,3489.8,3489.0,2.86614]
[1721187155706,2.86551,3489.8,3489.1,2.86606]
[1721187156514,2.86528,3490.1,3489.3,2.86584]
[1721187157312,2.48,3490.2,3489.3,2.86584]
[1721187157313,2.86534,3490.0,3489.3,2.86584]
[1721187157630,3.00000001,3490.5,3489.8,2.86548]
[1721187158032,1e-08,3490.5,3489.8,2.86548]
[1721187158650,2.86497001,3490.5,3489.7,2.86556]
[1721187159149,2.86497001,3490.5,3489.8,2.86547]
[1721187162632,2.86497001,3490.5,3489.7,2.86556]
[1721187162832,0.80246301,3490.5,3489.7,2.86556]
[1721187163065,3.00000001,3490.5,3489.9,2.86541]
[1721187166848,3.00000001,3490.5,3490.0,0.03290949]
[1721187170644,5.86492001,3490.5,3490.0,0.03290949]
[1721187170995,5.86492001,3490.5,3489.8,2.86548]
[1721187171191,5.86492001,3490.5,3489.9,0.03293816]
[1721187171488,6.34324779,3490.5,3489.9,0.03293816]
[1721187172069,6.34324779,3490.5,3489.9,2.89833816]
[1721187172271,5.86492001,3490.5,3489.9,2.89833816]
[1721187177348,3.00000001,3490.5,3490.0,2.86531]
[1721187177552,1e-08,3490.5,3490.1,0.03286396]
[1721187178908,2.2732,3490.4,3490.1,0.03286396]
[1721187179203,3.373479,3490.4,3489.9,2.8654]
[1721187179510,2.2732,3490.4,3490.0,0.03287575]
[1721187180494,2.2732,3490.4,3489.9,2.8654]
[1721187180696,2.2732,3490.4,3490.1,0.03178704]
[1721187181074,2.86516,3490.2,3489.4,2.86582]
[1721187181276,2.86511,3490.3,3490.2,0.03175837]
[1721187181475,2.86524,3490.1,3489.4,2.86582]
[1721187181794,2.86524,3490.1,3489.5,0.03195907]
[1721187182325,2.86511,3490.3,3489.5,2.89767907]
[1721187182687,5.13824,3490.4,3489.7,2.86552]
[1721187183172,5.13824,3490.4,3489.8,0.03187305]
[1721187188021,8.00332,3490.4,3489.8,0.03187305]
[1721187188215,8.00332,3490.4,3489.7,2.86552]
[1721187188424,8.00332,3490.4,3489.9,0.03184797]
[1721187188623,2.86508,3490.3,3489.7,2.86552]
[1721187189047,2.86508,3490.3,3489.8,0.03187665]
[1721187189544,2.86508,3490.3,3489.7,2.86552]
[1721187189751,2.86508,3490.3,3489.9,0.03184797]
[1721187189920,2.86508,3490.3,3489.8,0.03187665]
[1721187190113,2.86508,3490.3,3489.7,2.86552]
[1721187190532,2.86508,3490.3,3489.8,0.03187665]
[1721187190915,2.86508,3490.3,3489.6,2.86564]
[1721187191131,2.86508,3490.3,3489.9,0.03184797]
[1721187191332,2.86508,3490.3,3489.6,2.86564]
[1721187191547,2.86508,3490.3,3490.0,0.0318193]
[1721187191747,2.86508,3490.3,3489.6,2.86564]
[1721187191914,2.86508,3490.3,3490.1,0.03179064]
[1721187192129,2.86508,3490.3,3489.6,2.86564]
[1721187192514,3.76508931,3490.3,3489.7,0.03190532]
[1721187193450,0.90000931,3490.1,3489.7,0.03190532]
[1721187193858,2.86549,3489.8,3489.7,0.03190532]
[1721187194059,2.86549,3489.8,3489.0,9.7953801]
[1721187194359,2.86549,3489.8,3489.7,0.03093032]
[1721187194360,3.76549931,3489.8,3489.7,0.03093032]
[1721187194512,0.90000931,3489.8,3489.3,2.86588]
[1721187194717,0.90000931,3489.8,3489.7,0.03093032]
[1721187194951,0.90000931,3489.8,3489.3,2.86588]
[1721187195156,0.90000931,3489.8,3489.7,0.03093032]
[1721187195358,0.90000931,3489.8,3489.3,2.86588]
[1721187195528,0.90000931,3489.8,3489.7,0.03093032]
[1721187195717,0.90000931,3489.9,3489.3,6.01052123]
[1721187196255,3.76535931,3490.0,3489.4,0.03102599]
[1721187197123,0.90000931,3489.9,3489.4,2.89683599]
[1721187198028,0.90000931,3489.9,3489.6,2.8656]
[1721187198522,0.90000931,3489.9,3489.7,0.03093996]
[1721187198721,0.90000931,3490.0,3489.7,0.03093996]
[1721187198946,0.90000931,3489.9,3489.7,0.03093996]
[1721187199256,0.90000931,3490.0,3489.7,0.03093996]
[1721187200362,0.90000931,3489.9,3489.7,0.03093996]
[1721187202519,0.90000931,3490.1,3489.7,3.47273496]
[1721187202756,0.90000931,3490.2,3489.7,3.47273496]
[1721187204066,0.90000931,3490.3,3490.1,2.86524]
[1721187204267,1e-08,3490.5,3490.3,4.56508]
[1721187204670,1e-08,3490.5,3490.4,0.03073688]
[1721187205682,1e-08,3490.5,3490.4,2.89573688]
[1721187211637,0.72356601,3490.5,3490.4,2.89573688]
[1721187213549,0.72356601,3490.5,3490.4,0.03073688]
[1721187214089,0.72356601,3490.5,3490.3,2.86506]
[1721187214290,0.72356601,3490.5,3490.4,0.02957476]
[1721187215686,0.72356601,3490.5,3490.4,2.89457476]
[1721187215987,0.72356601,3490.5,3490.4,3.47053824]
[1721187219286,0.72356601,3490.5,3490.4,6.33553824]
[1721187220090,0.72356601,3490.5,3490.4,8.61613824]
[1721187221289,0.72356601,3490.5,3490.4,14.50113824]
[1721187221609,0.72356601,3490.5,3490.4,16.99103097]
[1721187221779,0.72356601,3490.5,3490.4,15.49703869]
[1721187222109,0.72356601,3490.5,3490.4,16.99082259]
[1721187222293,0.72356601,3490.5,3490.4,15.49703869]
[1721187223163,0.72356601,3490.5,3490.4,16.04703869]
[1721187223690,0.72356601,3490.5,3490.4,12.63197658]
[1721187223867,0.72356601,3490.5,3490.4,6.33553824]
[1721187230786,0.72356601,3490.5,3490.4,0.60553824]
[1721187230986,0.72356601,3490.5,3490.4,0.02957476]
[1721187231183,0.72356601,3490.5,3490.4,5.75957476]
[1721187231417,0.72356601,3490.5,3490.4,5.73]
[1721187231591,0.72356601,3490.5,3490.4,5.75940895]
[1721187233301,0.72356601,3490.5,3490.4,8.20230895]
[1721187233485,0.72356601,3490.5,3490.4,9.41862599]
[1721187234318,0.72356601,3490.5,3490.4,12.43862599]
[1721187236048,0.72356601,3490.5,3490.4,9.99572599]
[1721187237756,0.72356601,3490.5,3490.4,6.97572599]
[1721187239614,0.72356601,3490.5,3490.4,4.11072599]
[1721187244961,0.72356601,3490.5,3490.4,6.97572599]
[1721187246556,0.72356601,3490.5,3490.4,21.76538015]
[1721187246724,2.3094,3491.6,3490.4,21.76538015]
[1721187246725,2.3094,3491.6,3491.4,2.86417]
[1721187246925,2.3094,3491.6,3491.5,1.006]
[1721187247132,4.06340241,3492.4,3491.5,3.89830248]
[1721187247133,2.3659741,3491.9,3491.5,3.89830248]
[1721187247685,2.3659741,3491.9,3491.6,2.864]
[1721187248032,2.3659741,3491.9,3491.7,5.59799187]
[1721187248341,2.3659741,3491.9,3491.8,2.86385]
[1721187248674,2.3659741,3491.9,3491.8,2.89194323]
[1721187249034,0.0565741,3491.9,3491.8,2.89194323]
[1721187253372,2.3342741,3491.9,3491.8,0.02809323]
[1721187253582,2.56770151,3491.9,3491.3,2.86421]
[1721187253781,2.3342741,3491.9,3491.4,0.02809369]
[1721187254685,2.3342741,3491.9,3491.3,2.86425]
[1721187254976,2.3342741,3491.9,3491.4,0.02809369]
[1721187261404,2.3342741,3491.9,3491.4,2.89226369]
[1721187261555,2.3342741,3491.9,3491.4,0.02809369]
[1721187262095,2.3342741,3491.9,3491.4,2.89226369]
[1721187268809,2.3342741,3491.9,3491.5,2.86408]
[1721187269166,2.3342741,3491.9,3491.6,0.02794753]
[1721187271189,2.3342741,3491.9,3491.7,2.86391]
[1721187271537,2.3342741,3491.9,3491.7,2.89182889]
[1721187272927,0.0565741,3491.9,3491.7,2.89182889]
[1721187273427,0.0565741,3491.9,3491.8,2.86385]
[1721187273931,0.0565741,3491.9,3491.8,2.89175583]
[1721187274311,0.0565741,3491.9,3491.8,0.02790583]
[1721187274496,0.0565741,3491.9,3491.7,2.86392]
[1721187274699,0.0565741,3491.9,3491.8,0.02790583]
[1721187274934,0.0565741,3491.9,3491.7,2.86392]
[1721187275130,0.0565741,3491.9,3491.8,0.02790583]
[1721187275628,0.0565741,3491.9,3491.7,2.86392]
[1721187275857,2.4184741,3491.9,3491.8,0.02790583]
[1721187275995,3.03668244,3491.9,3491.8,0.02790583]
[1721187276197,4.04168244,3491.9,3491.4,2.86417]
[1721187276430,3.4234741,3491.9,3491.8,0.02790583]
[1721187276735,7.18725341,3491.9,3491.2,2.86427]
[1721187276911,0.90000931,3491.8,3491.2,2.86427]
[1721187277738,2.3619,3491.5,3490.9,6.9292901]
[1721187277940,1.005,3491.1,3490.9,6.9292901]
[1721187278231,3.86929,3491.3,3490.9,6.9292901]
[1721187278449,2.86429,3491.3,3490.9,6.9292901]
[1721187278736,2.86436,3491.2,3490.9,6.9292901]
[1721187281954,2.2849,3491.1,3490.9,6.9292901]
[1721187283423,2.2849,3491.1,3490.6,2.86481]
[1721187283627,2.2849,3491.1,3490.6,4.23120901]
[1721187284657,2.3141,3491.3,3490.7,2.86473]
[1721187285531,2.3141,3491.3,3490.7,4.56473]
[1721187286026,2.86412,3491.5,3490.8,1.062286]
[1721187286222,2.86412,3491.5,3490.9,0.9429915]
[1721187286830,2.86412,3491.5,3491.0,0.0274359]
[1721187287166,2.86412,3491.5,3490.8,1.005]
[1721187287376,2.86412,3491.5,3490.9,0.02746455]
[1721187288439,2.86418,3491.4,3490.9,0.02746455]
[1721187288865,2.86418,3491.4,3490.5,3.86988]
[1721187289183,2.86418,3491.4,3490.7,2.86475]
[1721187289326,2.405,3491.0,3490.8,0.02749321]
[1721187289526,2.405,3491.0,3490.4,2.86494]
[1721187289759,2.405,3491.0,3490.5,0.02757798]
[1721187289934,2.405,3491.0,3490.5,3.84708981]
[1721187290142,2.405,3491.0,3490.6,0.02754932]
[1721187290331,2.405,3491.0,3490.5,3.84708981]
[1721187290531,2.405,3491.0,3490.6,0.02754932]
[1721187290731,2.405,3491.0,3490.5,3.84708981]
[1721187291040,2.405,3491.0,3490.6,0.02754932]
[1721187291465,2.405,3491.0,3490.5,3.84708981]
[1721187291646,5.26912,3491.5,3490.8,2.8646]
[1721187292028,5.26912,3491.5,3490.9,1.03247899]
[1721187293067,5.26912,3491.5,3490.9,3.89704899]
[1721187293232,3.0,3491.6,3491.1,1.7]
[1721187293572,3.0,3491.6,3491.2,0.02739904]
[1721187295431,3.90000931,3491.6,3491.2,0.02739904]
[1721187295884,3.90000931,3491.6,3491.0,2.8645]
[1721187296040,3.90000931,3491.6,3491.3,0.02737039]
[1721187296235,3.90000931,3491.6,3491.0,2.8645]
[1721187296436,3.90000931,3491.6,3491.4,0.02734174]
[1721187296437,6.31920241,3491.5,3491.4,0.02734174]
[1721187296762,2.86424,3491.4,3490.7,8.6292901]
[1721187297086,3.15571127,3491.5,3490.9,2.86458]
[1721187297288,2.2551,3491.5,3490.9,2.86458]
[1721187297463,2.2551,3491.5,3491.0,2.89194634]
[1721187297877,3.15571127,3491.5,3491.0,2.89194634]
[1721187298187,2.2551,3491.5,3491.0,2.89194634]
[1721187298395,3.15571127,3491.5,3491.0,2.89194634]
[1721187298787,3.15571127,3491.5,3491.0,0.02745634]
[1721187298983,3.15571127,3491.5,3490.7,11.4940001]
[1721187299194,3.15571127,3491.5,3491.0,2.8645]
[1721187299406,2.2551,3491.5,3491.1,1.72742769]
[1721187300275,0.90061127,3491.7,3491.1,1.72742769]
[1721187300460,2.26158651,3491.9,3491.4,2.86411]
[1721187300461,0.95718537,3491.9,3491.4,2.86411]
[1721187300659,0.0565741,3491.9,3491.5,0.630361]
[1721187300860,0.95718537,3491.9,3491.5,0.65867641]
[1721187301482,0.0565741,3491.9,3491.5,0.65867641]
[1721187302276,0.0565741,3491.9,3491.5,3.52274641]
[1721187302887,0.0565741,3491.9,3491.5,0.02831541]
[1721187302888,1.90561127,3491.8,3491.5,0.02831541]
[1721187303209,1.005,3491.6,3490.9,2.86458]
[1721187303448,0.90082042,3491.5,3491.0,0.03304851]
[1721187303767,0.90082042,3491.5,3490.9,2.86458]
[1721187304098,0.90082042,3491.5,3491.0,0.03304851]
[1721187304393,3.76483042,3491.6,3490.9,4.40094201]
[1721187304580,0.90082042,3491.5,3491.0,0.03304851]
[1721187304776,2.86401,3491.6,3490.9,2.86458]
[1721187304777,3.76483042,3491.6,3490.9,2.86458]
[1721187304962,3.76483042,3491.6,3491.0,0.02832729]
[1721187305356,0.90082042,3491.5,3491.0,0.02832729]
[1721187305558,0.90082042,3491.5,3490.9,2.86458]
[1721187305754,0.90082042,3491.5,3491.1,0.02829659]
[1721187305969,0.90082042,3491.5,3490.9,2.86458]
[1721187306299,0.90082042,3491.5,3491.2,0.0304402]
[1721187306475,0.90082042,3491.6,3491.0,2.8645]
[1721187306677,0.90082042,3491.6,3491.3,0.03045704]
[1721187306876,0.90082042,3491.6,3491.2,2.86434]
[1721187307067,3.28092042,3491.7,3491.4,0.03042398]
[1721187307265,3.28092042,3491.7,3491.3,0.03045704]
[1721187307571,3.28092042,3491.7,3491.4,0.03042398]
[1721187307785,3.28092042,3491.7,3491.2,2.86434]
[1721187307990,3.28092042,3491.7,3491.5,0.03039093]
[1721187308188,0.90082042,3491.6,3491.2,2.86434]
[1721187309090,3.28092042,3491.7,3491.2,2.86434]
[1721187310606,0.90082042,3491.6,3490.9,2.86454]
[1721187310907,0.90082042,3491.5,3491.0,2.8645]
[1721187314529,0.90082042,3491.6,3491.0,2.8645]
[1721187315022,0.90082042,3491.6,3491.1,2.86441]
[1721187315218,0.90082042,3491.5,3491.1,2.86441]
[1721187315423,0.90082042,3491.5,3491.1,3.437301]
[1721187316494,0.90082042,3491.5,3491.1,2.86441]
[1721187316698,0.90082042,3491.4,3490.9,2.86455]
[1721187316898,0.90082042,3491.4,3491.2,0.03052473]
[1721187317224,0.90082042,3491.4,3491.0,2.86445]
[1721187317225,0.90082042,3491.5,3491.3,0.0283137]
[1721187317417,0.90082042,3491.5,3491.0,2.86445]
[1721187317732,0.90082042,3491.5,3491.4,0.02828687]
[1721187318025,0.90082042,3491.5,3491.4,0.03046278]
[1721187318230,0.90082042,3491.5,3491.0,2.86445]
[1721187318402,0.90082042,3491.4,3491.0,2.86445]
[1721187319995,0.90082042,3491.4,3491.1,2.86441]
[1721187320526,0.90082042,3491.4,3491.1,5.137296]
[1721187321119,0.90082042,3491.4,3491.2,2.86433]
[1721187321316,0.90082042,3491.5,3491.2,2.86433]
[1721187321639,0.90082042,3491.4,3491.2,2.86433]
[1721187324755,0.90082042,3491.4,3491.1,0.572886]
[1721187324943,0.90082042,3491.3,3491.0,2.8645]
[1721187325142,0.90082042,3491.2,3491.0,2.8645]
[1721187326510,0.90082042,3491.3,3490.8,2.8646]
[1721187326710,0.90082042,3491.3,3491.0,1.26584201]
[1721187326930,0.90082042,3491.3,3491.0,4.13029201]
[1721187327138,0.90082042,3491.3,3491.1,2.86441]
[1721187327322,0.90082042,3491.6,3491.4,2.86412]
[1721187328231,0.90082042,3491.6,3491.5,2.86409]
[1721187328441,0.95739452,3491.9,3491.7,2.86393]
[1721187328858,0.0565741,3491.9,3491.7,2.86393]
[1721187329865,0.0565741,3491.9,3491.8,2.86385]
[1721187330080,0.0565741,3491.9,3491.8,3.707128]
[1721187330239,0.0565741,3491.9,3491.8,6.570978]
[1721187330558,0.0565741,3491.9,3491.8,0.843278]
[1721187330874,0.0565741,3491.9,3491.6,2.86396]
[1721187331078,0.90158086,3491.8,3491.6,2.86396]
[1721187331438,0.95815496,3491.9,3491.6,2.86396]
[1721187331856,0.95815496,3491.9,3491.7,0.09855874]
[1721187332878,3.22168086,3491.8,3491.7,0.09855874]
[1721187333085,0.95815496,3491.9,3491.7,0.09855874]
[1721187333252,0.95815496,3491.9,3491.5,2.86408]
[1721187333743,0.95815496,3491.9,3491.6,0.09858946]
[1721187334433,0.95815496,3491.9,3491.6,0.85127141]
[1721187334635,0.95815496,3491.9,3491.8,2.86385]
[1721187334636,0.0565741,3491.9,3491.8,2.86385]
[1721187335064,0.0565741,3491.9,3491.8,2.96237803]
[1721187335685,0.0565741,3491.9,3491.8,7.52622803]
[1721187335977,0.0565741,3491.9,3491.8,8.33186814]
[1721187338783,0.0565741,3491.9,3491.8,3.76801814]
[1721187338940,0.0565741,3491.9,3491.8,0.09852803]
[1721187339136,2.4898741,3491.9,3491.3,2.86419]
[1721187339351,3.39145496,3491.9,3491.4,0.09845274]
[1721187339547,0.90158086,3491.8,3491.4,2.96262274]
[1721187339790,3.39145496,3491.9,3491.4,2.96262274]
[1721187340299,4.57343125,3491.9,3491.4,0.09845274]
[1721187340592,4.57343125,3491.9,3491.2,9.7936001]
[1721187340593,0.90158086,3491.7,3491.2,6.9292901]
[1721187340753,3.33488086,3491.6,3491.5,0.09842203]
[1721187341109,3.33488086,3491.6,3491.2,6.9292901]
[1721187341401,5.29747,3491.5,3491.2,6.9292901]
[1721187341606,2.4333,3491.0,3490.5,0.49540145]
[1721187341787,3.33424224,3491.0,3490.5,0.49540145]
[1721187342099,6.19874224,3491.0,3490.5,0.49540145]
[1721187342476,3.76556224,3490.9,3490.5,0.49540145]
[1721187342960,2.86462,3490.9,3490.5,0.49540145]
[1721187343840,3.76556224,3490.9,3490.5,0.49540145]
[1721187344133,3.33424224,3491.0,3490.5,1.23787061]
[1721187344295,0.90094224,3491.1,3490.5,1.23787061]
[1721187344500,0.90094224,3491.1,3490.5,4.10276061]
[1721187344807,3.76528224,3491.2,3490.5,4.10276061]
[1721187345004,0.90094224,3491.1,3490.5,4.10276061]
[1721187345846,0.90094224,3491.1,3490.6,1.38970507]
[1721187345999,3.22194224,3491.3,3490.7,2.86475]
[1721187346409,3.22194224,3491.3,3490.8,2.86461]
[1721187346641,2.321,3491.3,3490.8,2.86461]
[1721187346937,2.321,3491.3,3490.9,0.09883544]
[1721187346938,6.22194224,3491.3,3490.9,0.09883544]
[1721187347391,5.321,3491.3,3490.9,0.09883544]
[1721187347899,6.22194224,3491.3,3490.9,0.09883544]
[1721187348532,5.321,3491.3,3490.9,0.09883544]
[1721187349001,6.22194224,3491.3,3490.9,0.09883544]
[1721187350920,5.321,3491.3,3490.9,0.09883544]
[1721187351967,6.34972686,3491.3,3490.9,0.09883544]
[1721187352261,2.86448,3491.1,3490.3,9.7943101]
[1721187352424,3.38234224,3491.0,3490.3,9.7943101]
[1721187352815,6.24687224,3491.0,3490.3,6.9292901]
[1721187353315,2.8646,3490.9,3490.3,6.9292901]
[1721187353519,3.89586786,3490.9,3490.3,6.9292901]
[1721187353729,2.4814,3490.6,3490.3,6.9292901]
[1721187354366,5.34624,3490.6,3490.3,6.9292901]
[1721187354749,2.86492,3490.5,3490.3,6.9292901]
[1721187354956,2.4814,3490.5,3489.6,6.9292901]
[1721187355142,2.4814,3490.5,3489.5,0.44913661]
[1721187355143,2.4814,3489.7,3489.5,0.44913661]
[1721187355341,2.86565,3489.6,3489.0,6.9292901]
[1721187355542,3.76659224,3489.6,3489.0,6.9292901]
[1721187355727,2.86587,3489.4,3489.0,6.9292901]
[1721187356134,2.86596,3489.3,3489.0,6.9292901]
[1721187356460,3.439161,3489.2,3488.2,2.86678]
[1721187356965,2.86617,3489.0,3488.2,2.86678]
[1721187358532,3.439161,3489.2,3488.3,2.8667]
[1721187358852,2.86584,3489.4,3488.5,2.86655]
[1721187359468,2.86567,3489.6,3488.5,2.86655]
[1721187359469,2.8659,3489.3,3488.5,2.86655]
[1721187359677,2.8659,3489.3,3488.6,2.86647]
[1721187359878,2.86608,3489.1,3488.4,0.44935979]
[1721187360184,2.8659,3489.3,3488.4,0.44935979]
[1721187360340,2.86615,3489.0,3488.4,0.44935979]
[1721187360878,5.34701,3489.7,3488.4,2.86656]
[1721187360879,2.86604,3489.2,3488.4,2.86656]
[1721187361175,2.86591,3489.3,3488.6,2.86642]
[1721187361488,2.86591,3489.3,3488.5,2.86654]
[1721187361688,3.0,3489.4,3488.7,2.86638]
[1721187361839,2.86574,3489.5,3488.8,0.456638]
[1721187362035,5.86582,3489.4,3488.8,0.08782259]
[1721187362244,2.86582,3489.4,3488.7,2.86638]
[1721187363048,2.86582,3489.4,3488.5,4.5665]
[1721187363244,2.86582,3489.4,3488.8,0.08802216]
[1721187363447,5.86566,3489.6,3488.3,0.29962944]
[1721187363448,3.0,3489.6,3488.3,0.29962944]
[1721187363652,2.86624,3488.9,3488.4,0.08814282]
[1721187363978,2.86615,3489.0,3487.3,5.17187]
[1721187363979,2.2915,3488.4,3487.6,2.86729]
[1721187364359,2.2915,3488.4,3488.1,0.08823633]
[1721187364553,2.2915,3488.4,3487.7,2.86719]
[1721187364879,5.15814,3488.4,3487.7,5.424638]
[1721187365178,2.8668,3488.2,3487.8,0.08832866]
[1721187365544,2.8668,3488.2,3487.5,7.39]
[1721187365736,2.8668,3488.2,3487.9,0.08733294]
[1721187365940,2.8668,3488.2,3487.5,7.39]
[1721187366164,2.8668,3488.2,3488.0,0.08730217]
[1721187366363,2.8668,3488.2,3487.5,7.39]
[1721187366364,0.802494,3488.1,3487.5,7.39]
[1721187366669,2.86681,3488.2,3487.5,7.39]
[1721187366866,5.15816,3488.4,3487.5,7.39]
[1721187366867,5.15816,3488.4,3487.7,2.86721]
[1721187368595,2.86673,3488.3,3487.5,10.25738]